[Event "Early-Titled-Tuesday-Blitz-January-23-2024"]
[Site "Chess.com"]
[Date "2024.01.23"]
[Round "1"]
[White "Flaccidmoves"]
[Black "scarabee43"]
[Result "0-1"]
[WhiteElo "2450"]
[BlackElo "2820"]
[TimeControl "180+1"]
[EndTime "8:06:40 PST"]
[Termination "scarabee43 won by checkmate"]

1. c4 {[%clk 0:03:00.9]} 1... Nf6 {[%clk 0:02:58.9]} 2. Nc3 {[%clk 0:03:00.7]}
2... e6 {[%clk 0:02:58.3]} 3. e4 {[%clk 0:03:00.2]} 3... Nc6 {[%clk 0:02:58.3]}
4. Nf3 {[%clk 0:02:54.2]} 4... d6 {[%clk 0:02:53.6]} 5. d4 {[%clk 0:02:52.8]}
5... Be7 {[%clk 0:02:51.6]} 6. Bd3 {[%clk 0:02:46.1]} 6... O-O {[%clk
0:02:51.7]} 7. h3 {[%clk 0:02:31.1]} 7... e5 {[%clk 0:02:49.1]} 8. d5 {[%clk
0:02:29]} 8... Nb4 {[%clk 0:02:48.9]} 9. Be2 {[%clk 0:02:16.6]} 9... c5 {[%clk
0:02:49.1]} 10. a3 {[%clk 0:02:10]} 10... Na6 {[%clk 0:02:48.3]} 11. O-O {[%clk
0:02:07.9]} 11... Ne8 {[%clk 0:02:44]} 12. Rb1 {[%clk 0:01:53.2]} 12... g6
{[%clk 0:02:39.2]} 13. b4 {[%clk 0:01:42.5]} 13... b6 {[%clk 0:02:39.4]} 14. Bh6
{[%clk 0:01:30.1]} 14... Ng7 {[%clk 0:02:39.2]} 15. Qd2 {[%clk 0:01:23.7]} 15...
Nc7 {[%clk 0:02:27.4]} 16. bxc5 {[%clk 0:01:20.8]} 16... bxc5 {[%clk 0:02:28]}
17. Ne1 {[%clk 0:01:12.7]} 17... Nce8 {[%clk 0:02:20.4]} 18. Nd3 {[%clk
0:01:07.3]} 18... f5 {[%clk 0:02:07.8]} 19. f4 {[%clk 0:01:01.3]} 19... fxe4
{[%clk 0:02:07.1]} 20. Nxe4 {[%clk 0:01:00.5]} 20... Bf5 {[%clk 0:02:05.6]} 21.
Ng5 {[%clk 0:00:53.4]} 21... e4 {[%clk 0:01:55.5]} 22. Nb2 {[%clk 0:00:32.2]}
22... e3 {[%clk 0:01:54.9]} 23. Qxe3 {[%clk 0:00:32.2]} 23... Bxb1 {[%clk
0:01:55.1]} 24. Rxb1 {[%clk 0:00:33.1]} 24... Rb8 {[%clk 0:01:44.9]} 25. Bd3
{[%clk 0:00:30.3]} 25... Bxg5 {[%clk 0:01:31.3]} 26. Bxg5 {[%clk 0:00:27.2]}
26... Qd7 {[%clk 0:01:31.7]} 27. g4 {[%clk 0:00:20.9]} 27... Nc7 {[%clk
0:01:28.9]} 28. Nd1 {[%clk 0:00:18.8]} 28... Rxb1 {[%clk 0:01:28.2]} 29. Bxb1
{[%clk 0:00:19.7]} 29... Re8 {[%clk 0:01:27.6]} 30. Qf2 {[%clk 0:00:19.8]} 30...
Qa4 {[%clk 0:01:27.3]} 31. Bc2 {[%clk 0:00:14]} 31... Qxc4 {[%clk 0:01:26.8]}
32. f5 {[%clk 0:00:13.2]} 32... gxf5 {[%clk 0:01:26.5]} 33. gxf5 {[%clk
0:00:14.1]} 33... Re2 {[%clk 0:01:26.2]} 34. Ne3 {[%clk 0:00:12.2]} 34... Rxf2
{[%clk 0:01:25.2]} 35. Nxc4 {[%clk 0:00:12.3]} 35... Rxc2 {[%clk 0:01:25.7]} 36.
Nxd6 {[%clk 0:00:11.9]} 36... Nxd5 {[%clk 0:01:25.8]} 37. f6 {[%clk 0:00:10.6]}
37... Ne6 {[%clk 0:01:24.2]} 38. f7+ {[%clk 0:00:10.3]} 38... Kf8 {[%clk
0:01:23.2]} 39. Bh6+ {[%clk 0:00:08.4]} 39... Ke7 {[%clk 0:01:23.5]} 40. f8=Q+
{[%clk 0:00:05.1]} 40... Nxf8 {[%clk 0:01:23.5]} 41. Nf5+ {[%clk 0:00:05.8]}
41... Kf7 {[%clk 0:01:23.4]} 42. Nd6+ {[%clk 0:00:05.9]} 42... Kg8 {[%clk
0:01:23.8]} 43. Nf5 {[%clk 0:00:05.5]} 43... Ng6 {[%clk 0:01:24]} 44. h4 {[%clk
0:00:05]} 44... Ne5 {[%clk 0:01:23.6]} 45. h5 {[%clk 0:00:05.1]} 45... Nf3+
{[%clk 0:01:23.8]} 46. Kf1 {[%clk 0:00:04.3]} 46... Nd4 {[%clk 0:01:22.3]} 47.
Nd6 {[%clk 0:00:02.7]} 47... c4 {[%clk 0:01:22.7]} 48. Ke1 {[%clk 0:00:02.7]}
48... c3 {[%clk 0:01:23]} 49. Kd1 {[%clk 0:00:03.1]} 49... Rg2 {[%clk
0:01:22.7]} 50. Kc1 {[%clk 0:00:01.4]} 50... Rg1# {[%clk 0:01:22.9]} 0-1

[Event "Early-Titled-Tuesday-Blitz-January-23-2024"]
[Site "Chess.com"]
[Date "2024.01.23"]
[Round "1"]
[White "Paladin61"]
[Black "jup1978"]
[Result "1-0"]
[WhiteElo "2725"]
[BlackElo "2414"]
[TimeControl "180+1"]
[EndTime "8:06:41 PST"]
[Termination "Paladin61 won by resignation"]

1. e4 {[%clk 0:03:00.9]} 1... c6 {[%clk 0:02:57.6]} 2. d4 {[%clk 0:02:59.7]}
2... d5 {[%clk 0:02:58.5]} 3. exd5 {[%clk 0:02:59.1]} 3... cxd5 {[%clk
0:02:58.5]} 4. Bd3 {[%clk 0:02:59.3]} 4... Nf6 {[%clk 0:02:57.8]} 5. c3 {[%clk
0:02:59.2]} 5... Nc6 {[%clk 0:02:56.6]} 6. h3 {[%clk 0:02:53.7]} 6... e5 {[%clk
0:02:52.7]} 7. dxe5 {[%clk 0:02:53.2]} 7... Nxe5 {[%clk 0:02:53.6]} 8. Nf3
{[%clk 0:02:53.6]} 8... Nxd3+ {[%clk 0:02:51.9]} 9. Qxd3 {[%clk 0:02:54.5]} 9...
Bd6 {[%clk 0:02:50.3]} 10. O-O {[%clk 0:02:53.5]} 10... O-O {[%clk 0:02:48.6]}
11. Bg5 {[%clk 0:02:53.4]} 11... Bc7 {[%clk 0:02:40]} 12. Nbd2 {[%clk
0:02:51.7]} 12... h6 {[%clk 0:02:39.4]} 13. Bh4 {[%clk 0:02:51.4]} 13... Re8
{[%clk 0:02:26.9]} 14. Rfe1 {[%clk 0:02:49.2]} 14... Be6 {[%clk 0:02:25.7]} 15.
Nd4 {[%clk 0:02:48.7]} 15... Qd6 {[%clk 0:02:21]} 16. Bg3 {[%clk 0:02:46.3]}
16... Qd7 {[%clk 0:02:18.3]} 17. Bxc7 {[%clk 0:02:45.7]} 17... Qxc7 {[%clk
0:02:19.2]} 18. Re3 {[%clk 0:02:45.1]} 18... Bd7 {[%clk 0:02:17]} 19. Rae1
{[%clk 0:02:44.7]} 19... Rxe3 {[%clk 0:02:16.1]} 20. Rxe3 {[%clk 0:02:44.3]}
20... Re8 {[%clk 0:02:11.6]} 21. Qe2 {[%clk 0:02:43.3]} 21... Qd8 {[%clk
0:02:08.8]} 22. Rxe8+ {[%clk 0:02:37.4]} 22... Qxe8 {[%clk 0:02:09.7]} 23. Qxe8+
{[%clk 0:02:36]} 23... Nxe8 {[%clk 0:02:10.6]} 24. Kf1 {[%clk 0:02:35.9]} 24...
Kf8 {[%clk 0:02:07.2]} 25. Ke2 {[%clk 0:02:35.1]} 25... Ke7 {[%clk 0:02:07.7]}
26. Ke3 {[%clk 0:02:33]} 26... Nd6 {[%clk 0:02:08]} 27. b3 {[%clk 0:02:29.3]}
27... f6 {[%clk 0:02:06.8]} 28. g4 {[%clk 0:02:26.2]} 28... g5 {[%clk
0:02:03.3]} 29. f3 {[%clk 0:02:21.1]} 29... a5 {[%clk 0:02:03]} 30. Nf1 {[%clk
0:02:19.3]} 30... Be8 {[%clk 0:01:58.4]} 31. f4 {[%clk 0:02:11.3]} 31... Bd7
{[%clk 0:01:58]} 32. Ng3 {[%clk 0:02:07.3]} 32... Kf7 {[%clk 0:01:52.9]} 33. f5
{[%clk 0:01:55]} 33... Ke7 {[%clk 0:01:51.2]} 34. Nc2 {[%clk 0:01:46.5]} 34...
Nf7 {[%clk 0:01:48.2]} 35. Kd4 {[%clk 0:01:41.6]} 35... Kd6 {[%clk 0:01:48.1]}
36. Nh5 {[%clk 0:01:41.1]} 36... Ke7 {[%clk 0:01:43.7]} 37. Ne3 {[%clk
0:01:40.6]} 37... Bc6 {[%clk 0:01:39.4]} 38. Nxd5+ {[%clk 0:01:33.6]} 38... Bxd5
{[%clk 0:01:40.3]} 39. Kxd5 {[%clk 0:01:34.1]} 39... Ne5 {[%clk 0:01:39.1]} 40.
Ng3 {[%clk 0:01:08.9]} 40... Nf3 {[%clk 0:01:33.1]} 41. Ne4 {[%clk 0:01:00.9]}
41... Ng1 {[%clk 0:01:32.1]} 42. Nf2 {[%clk 0:01:00.7]} 42... Ne2 {[%clk
0:01:30.7]} 43. Kc4 {[%clk 0:00:39.6]} 43... Nf4 {[%clk 0:01:27.8]} 44. Kb5
{[%clk 0:00:36.5]} 44... Nd5 {[%clk 0:01:24.3]} 45. Ne4 {[%clk 0:00:31.1]} 45...
Nf4 {[%clk 0:01:21.3]} 46. Kxa5 {[%clk 0:00:31.3]} 46... Nxh3 {[%clk 0:01:21.1]}
47. Kb6 {[%clk 0:00:31.7]} 47... Nf4 {[%clk 0:01:18.8]} 48. Kxb7 {[%clk
0:00:31.5]} 48... Nd3 {[%clk 0:01:17.5]} 49. a4 {[%clk 0:00:29.7]} 49... Ne5
{[%clk 0:01:15.1]} 50. a5 {[%clk 0:00:29.6]} 50... Nxg4 {[%clk 0:01:14.4]} 51.
a6 {[%clk 0:00:29.9]} 1-0

[Event "Early-Titled-Tuesday-Blitz-January-23-2024"]
[Site "Chess.com"]
[Date "2024.01.23"]
[Round "1"]
[White "OneTrickPony_82"]
[Black "FGHSMN"]
[Result "0-1"]
[WhiteElo "2518"]
[BlackElo "2999"]
[TimeControl "180+1"]
[EndTime "8:06:44 PST"]
[Termination "FGHSMN won on time"]

1. d4 {[%clk 0:02:59.8]} 1... Nf6 {[%clk 0:02:59.7]} 2. c4 {[%clk 0:02:59.9]}
2... b6 {[%clk 0:02:59.2]} 3. Nc3 {[%clk 0:02:57.1]} 3... Bb7 {[%clk 0:02:59.9]}
4. f3 {[%clk 0:02:56.8]} 4... d5 {[%clk 0:02:58.2]} 5. cxd5 {[%clk 0:02:52.7]}
5... Nxd5 {[%clk 0:02:59.1]} 6. Nxd5 {[%clk 0:02:43.5]} 6... Qxd5 {[%clk
0:03:00]} 7. e4 {[%clk 0:02:43.8]} 7... Qd6 {[%clk 0:03:00]} 8. Be3 {[%clk
0:02:41.3]} 8... e6 {[%clk 0:02:57.8]} 9. Bb5+ {[%clk 0:02:34.2]} 9... Nd7
{[%clk 0:02:54.8]} 10. Qa4 {[%clk 0:02:22.6]} 10... a6 {[%clk 0:02:51.8]} 11.
Bd3 {[%clk 0:02:18.7]} 11... c5 {[%clk 0:02:48.7]} 12. Ne2 {[%clk 0:02:18.3]}
12... b5 {[%clk 0:02:48.1]} 13. Qa3 {[%clk 0:02:05.6]} 13... Qb6 {[%clk
0:02:27.9]} 14. dxc5 {[%clk 0:01:47.4]} 14... Bxc5 {[%clk 0:02:23.4]} 15. Bxc5
{[%clk 0:01:46.9]} 15... Nxc5 {[%clk 0:02:24.3]} 16. Bc2 {[%clk 0:01:16.9]}
16... Rd8 {[%clk 0:02:15.6]} 17. Rd1 {[%clk 0:01:01.5]} 17... O-O {[%clk
0:02:05.4]} 18. b4 {[%clk 0:01:01.5]} 18... Rxd1+ {[%clk 0:02:01.9]} 19. Kxd1
{[%clk 0:00:55.2]} 19... Na4 {[%clk 0:01:49.4]} 20. Bxa4 {[%clk 0:00:52.6]}
20... bxa4 {[%clk 0:01:49.7]} 21. Qc3 {[%clk 0:00:28.3]} 21... Rd8+ {[%clk
0:01:47.1]} 22. Ke1 {[%clk 0:00:25.7]} 22... Bc6 {[%clk 0:01:36.5]} 23. Qc5
{[%clk 0:00:25.1]} 23... Qb7 {[%clk 0:01:30.9]} 24. Kf2 {[%clk 0:00:24.4]} 24...
Bb5 {[%clk 0:01:26.5]} 25. Nd4 {[%clk 0:00:18.1]} 25... Rc8 {[%clk 0:01:26.1]}
26. Qd6 {[%clk 0:00:13.5]} 26... Qa7 {[%clk 0:01:22.1]} 27. Kg3 {[%clk
0:00:12.3]} 27... h5 {[%clk 0:01:18.5]} 28. Rd1 {[%clk 0:00:11.6]} 28... a3
{[%clk 0:01:09.8]} 29. Nxb5 {[%clk 0:00:11.4]} 29... axb5 {[%clk 0:01:10.2]} 30.
Qe5 {[%clk 0:00:11]} 30... h4+ {[%clk 0:01:06.4]} 31. Kxh4 {[%clk 0:00:06.2]}
31... Qf2+ {[%clk 0:01:06.8]} 32. Qg3 {[%clk 0:00:06.8]} 32... Qxa2 {[%clk
0:01:05.3]} 33. Rd7 {[%clk 0:00:04.2]} 33... Qb2 {[%clk 0:00:59.8]} 34. Qf4
{[%clk 0:00:04.2]} 34... Rf8 {[%clk 0:00:56]} 35. Ra7 {[%clk 0:00:03.5]} 35...
a2 {[%clk 0:00:56.6]} 36. Qd6 {[%clk 0:00:01.6]} 36... a1=Q {[%clk 0:00:56.1]}
0-1

[Event "Early-Titled-Tuesday-Blitz-January-23-2024"]
[Site "Chess.com"]
[Date "2024.01.23"]
[Round "1"]
[White "Seochesspie"]
[Black "soloderisas"]
[Result "1-0"]
[WhiteElo "2814"]
[BlackElo "2449"]
[TimeControl "180+1"]
[EndTime "8:06:44 PST"]
[Termination "Seochesspie won by resignation"]

1. e4 {[%clk 0:03:00.9]} 1... d6 {[%clk 0:02:57.5]} 2. d4 {[%clk 0:03:00.2]}
2... Nf6 {[%clk 0:02:56.2]} 3. Bd3 {[%clk 0:02:57.9]} 3... e5 {[%clk 0:02:54.8]}
4. Nf3 {[%clk 0:02:57.3]} 4... Nc6 {[%clk 0:02:53]} 5. c3 {[%clk 0:02:54.2]}
5... Be7 {[%clk 0:02:50.1]} 6. h3 {[%clk 0:02:53.9]} 6... O-O {[%clk 0:02:48.9]}
7. O-O {[%clk 0:02:53.9]} 7... Re8 {[%clk 0:02:47.1]} 8. Re1 {[%clk 0:02:51.8]}
8... h6 {[%clk 0:02:46.3]} 9. Nbd2 {[%clk 0:02:51.5]} 9... Bf8 {[%clk
0:02:45.6]} 10. Nf1 {[%clk 0:02:50.6]} 10... d5 {[%clk 0:02:40.2]} 11. exd5
{[%clk 0:02:44.3]} 11... Qxd5 {[%clk 0:02:36.3]} 12. dxe5 {[%clk 0:02:27.4]}
12... Nxe5 {[%clk 0:02:35.8]} 13. Nxe5 {[%clk 0:02:27.2]} 13... Rxe5 {[%clk
0:02:35.2]} 14. Rxe5 {[%clk 0:02:27.9]} 14... Qxe5 {[%clk 0:02:35]} 15. Qf3
{[%clk 0:02:28.8]} 15... Bd6 {[%clk 0:02:28.4]} 16. Be3 {[%clk 0:02:24.3]} 16...
Be6 {[%clk 0:02:13.1]} 17. Qxb7 {[%clk 0:02:10.3]} 17... Bd5 {[%clk 0:02:12.6]}
18. Qa6 {[%clk 0:02:10.6]} 18... Rb8 {[%clk 0:01:57.1]} 19. b3 {[%clk
0:01:55.9]} 19... Qxc3 {[%clk 0:01:50.9]} 20. Rc1 {[%clk 0:01:55]} 20... Qe5
{[%clk 0:01:49.4]} 21. Qa4 {[%clk 0:01:41.6]} 21... Rb4 {[%clk 0:01:39.9]} 22.
Qxa7 {[%clk 0:01:41.2]} 22... Rh4 {[%clk 0:01:34.6]} 23. Re1 {[%clk 0:01:24]}
23... Qh5 {[%clk 0:00:36.1]} 24. Qb8+ {[%clk 0:01:17]} 24... Bf8 {[%clk
0:00:29.5]} 25. Qxc7 {[%clk 0:01:08.9]} 25... Rxh3 {[%clk 0:00:17.5]} 26. gxh3
{[%clk 0:00:43.5]} 26... Qf3 {[%clk 0:00:17.9]} 27. Qh2 {[%clk 0:00:43.1]} 27...
Bd6 {[%clk 0:00:17.7]} 28. Ng3 {[%clk 0:00:43.4]} 28... Nh5 {[%clk 0:00:17.7]}
29. Be2 {[%clk 0:00:40.5]} 29... Bxg3 {[%clk 0:00:12.8]} 30. Bxf3 {[%clk
0:00:40.6]} 30... Bxh2+ {[%clk 0:00:13.5]} 31. Kxh2 {[%clk 0:00:41]} 31... Bxf3
{[%clk 0:00:14.4]} 32. a4 {[%clk 0:00:39.4]} 32... Bd5 {[%clk 0:00:14.1]} 33. b4
{[%clk 0:00:39.3]} 1-0

[Event "Early-Titled-Tuesday-Blitz-January-23-2024"]
[Site "Chess.com"]
[Date "2024.01.23"]
[Round "1"]
[White "Kostukov_Alex"]
[Black "AyMitecK"]
[Result "0-1"]
[WhiteElo "2292"]
[BlackElo "2626"]
[TimeControl "180+1"]
[EndTime "8:06:44 PST"]
[Termination "AyMitecK won by resignation"]

1. g3 {[%clk 0:02:56]} 1... Nf6 {[%clk 0:02:59.2]} 2. Bg2 {[%clk 0:02:56.5]}
2... d5 {[%clk 0:02:59.3]} 3. d3 {[%clk 0:02:55.9]} 3... Bf5 {[%clk 0:02:58]} 4.
Nc3 {[%clk 0:02:54.7]} 4... c6 {[%clk 0:02:54.4]} 5. e4 {[%clk 0:02:54.7]} 5...
Bg6 {[%clk 0:02:53.8]} 6. e5 {[%clk 0:02:52.8]} 6... Nfd7 {[%clk 0:02:51.6]} 7.
f4 {[%clk 0:02:53]} 7... e6 {[%clk 0:02:50.8]} 8. Nf3 {[%clk 0:02:52.8]} 8... c5
{[%clk 0:02:43]} 9. O-O {[%clk 0:02:47.4]} 9... Nc6 {[%clk 0:02:42.7]} 10. Bd2
{[%clk 0:02:42.8]} 10... Be7 {[%clk 0:02:33.6]} 11. h3 {[%clk 0:02:34.5]} 11...
Qb6 {[%clk 0:02:28]} 12. Kh2 {[%clk 0:02:34.1]} 12... h6 {[%clk 0:02:10.8]} 13.
b3 {[%clk 0:02:29]} 13... Bh7 {[%clk 0:02:03.3]} 14. Ne2 {[%clk 0:02:23.3]}
14... O-O-O {[%clk 0:01:45.8]} 15. Be3 {[%clk 0:02:19.5]} 15... g5 {[%clk
0:01:44.5]} 16. fxg5 {[%clk 0:02:11.6]} 16... hxg5 {[%clk 0:01:33.8]} 17. Nxg5
{[%clk 0:02:10.4]} 17... Ndxe5 {[%clk 0:01:23.5]} 18. Nxf7 {[%clk 0:01:43.8]}
18... Nxf7 {[%clk 0:01:18.9]} 19. Rxf7 {[%clk 0:01:42.2]} 19... Bd6 {[%clk
0:01:19.3]} 20. Nf4 {[%clk 0:01:25.2]} 20... Bf5 {[%clk 0:01:05.6]} 21. Nxd5
{[%clk 0:01:15.8]} 21... Qa5 {[%clk 0:00:51]} 22. b4 {[%clk 0:00:45.4]} 22...
cxb4 {[%clk 0:00:46.4]} 23. Nf4 {[%clk 0:00:31.1]} 23... Ne5 {[%clk 0:00:34]}
24. Rxf5 {[%clk 0:00:20.8]} 24... exf5 {[%clk 0:00:31.1]} 25. Bd2 {[%clk
0:00:09.2]} 25... Ng4+ {[%clk 0:00:28.2]} 26. Kg1 {[%clk 0:00:07.2]} 26... Qb6+
{[%clk 0:00:28]} 0-1

[Event "Early-Titled-Tuesday-Blitz-January-23-2024"]
[Site "Chess.com"]
[Date "2024.01.23"]
[Round "1"]
[White "Sibelephant"]
[Black "Statham_01"]
[Result "1-0"]
[WhiteElo "3076"]
[BlackElo "2529"]
[TimeControl "180+1"]
[EndTime "8:06:49 PST"]
[Termination "Sibelephant won by resignation"]

1. Nf3 {[%clk 0:02:59.6]} 1... e5 {[%clk 0:02:56.2]} 2. Nxe5 {[%clk 0:02:59]}
2... Nc6 {[%clk 0:02:57]} 3. Nf3 {[%clk 0:02:56.9]} 3... Nf6 {[%clk 0:02:57.6]}
4. d4 {[%clk 0:02:54.5]} 4... d5 {[%clk 0:02:58.1]} 5. Bg5 {[%clk 0:02:52.6]}
5... h6 {[%clk 0:02:56.9]} 6. Bxf6 {[%clk 0:02:52.4]} 6... Qxf6 {[%clk
0:02:57.8]} 7. e3 {[%clk 0:02:53]} 7... Bd6 {[%clk 0:02:57.4]} 8. Nbd2 {[%clk
0:02:50.1]} 8... Bf5 {[%clk 0:02:51.3]} 9. c3 {[%clk 0:02:36.1]} 9... a6 {[%clk
0:02:45.4]} 10. Qb3 {[%clk 0:02:29.2]} 10... O-O-O {[%clk 0:02:35.7]} 11. Be2
{[%clk 0:02:09]} 11... g5 {[%clk 0:02:26.2]} 12. O-O-O {[%clk 0:02:04.3]} 12...
Rhe8 {[%clk 0:02:06]} 13. Rhf1 {[%clk 0:01:46.1]} 13... Re6 {[%clk 0:01:34.6]}
14. Ne1 {[%clk 0:01:40.3]} 14... Qg6 {[%clk 0:01:21.2]} 15. g4 {[%clk
0:01:38.7]} 15... Be4 {[%clk 0:01:14.6]} 16. f3 {[%clk 0:01:38.1]} 16... Bb1
{[%clk 0:00:23.2]} 17. Nxb1 {[%clk 0:01:37.1]} 17... Rxe3 {[%clk 0:00:23.9]} 18.
Bd3 {[%clk 0:01:35.2]} 18... Bf4 {[%clk 0:00:17]} 19. Kc2 {[%clk 0:01:21]} 19...
Qf6 {[%clk 0:00:11.5]} 20. Ng2 {[%clk 0:01:17.1]} 20... Re6 {[%clk 0:00:08]} 21.
Bf5 {[%clk 0:01:16.1]} 21... Kb8 {[%clk 0:00:08]} 22. Bxe6 {[%clk 0:01:15.8]}
22... fxe6 {[%clk 0:00:08.7]} 23. Nxf4 {[%clk 0:01:15.3]} 23... Qxf4 {[%clk
0:00:09.6]} 24. Nd2 {[%clk 0:01:10.3]} 24... Rd6 {[%clk 0:00:10.1]} 25. Kb1
{[%clk 0:01:09.9]} 25... Qe3 {[%clk 0:00:08]} 26. Qc2 {[%clk 0:01:06.9]} 26...
Na5 {[%clk 0:00:06.3]} 27. Rfe1 {[%clk 0:01:05.8]} 27... Qf4 {[%clk 0:00:05.3]}
28. Re2 {[%clk 0:01:04.9]} 28... Rb6 {[%clk 0:00:05.6]} 29. Rde1 {[%clk
0:01:05.1]} 29... Qf7 {[%clk 0:00:04]} 30. Ka1 {[%clk 0:01:02]} 30... Ka7 {[%clk
0:00:04.6]} 31. Qd3 {[%clk 0:01:00.1]} 31... Qd7 {[%clk 0:00:05]} 32. b4 {[%clk
0:00:58.4]} 32... Nc6 {[%clk 0:00:03]} 33. Nb3 {[%clk 0:00:58.8]} 33... Nb8
{[%clk 0:00:02.4]} 34. Nc5 {[%clk 0:00:58.8]} 34... Qd8 {[%clk 0:00:02.5]} 35.
Nxe6 {[%clk 0:00:58.7]} 35... Qf6 {[%clk 0:00:02.6]} 36. Nxc7 {[%clk 0:00:57.7]}
36... Nc6 {[%clk 0:00:02.8]} 37. Nxd5 {[%clk 0:00:57.6]} 37... Qg6 {[%clk
0:00:01.9]} 38. Qxg6 {[%clk 0:00:57.3]} 1-0

[Event "Early-Titled-Tuesday-Blitz-January-23-2024"]
[Site "Chess.com"]
[Date "2024.01.23"]
[Round "1"]
[White "OparinGrigoriy"]
[Black "masnyszachistaaa"]
[Result "1-0"]
[WhiteElo "3031"]
[BlackElo "2526"]
[TimeControl "180+1"]
[EndTime "8:06:49 PST"]
[Termination "OparinGrigoriy won by resignation"]

1. Nf3 {[%clk 0:03:00.9]} 1... d5 {[%clk 0:02:56.8]} 2. e3 {[%clk 0:03:00.3]}
2... c6 {[%clk 0:02:55.9]} 3. c4 {[%clk 0:03:00.5]} 3... Nf6 {[%clk 0:02:54.9]}
4. b3 {[%clk 0:03:00.6]} 4... Bg4 {[%clk 0:02:54.2]} 5. Bb2 {[%clk 0:03:00.2]}
5... e6 {[%clk 0:02:52]} 6. h3 {[%clk 0:03:00.7]} 6... Bh5 {[%clk 0:02:46.4]} 7.
g4 {[%clk 0:02:56.1]} 7... Bg6 {[%clk 0:02:46.3]} 8. Ne5 {[%clk 0:02:56.8]} 8...
Nbd7 {[%clk 0:02:44.4]} 9. Nxg6 {[%clk 0:02:55.2]} 9... hxg6 {[%clk 0:02:45.3]}
10. Bg2 {[%clk 0:02:55.1]} 10... Bd6 {[%clk 0:02:43]} 11. Qe2 {[%clk 0:02:54.2]}
11... a5 {[%clk 0:02:40.8]} 12. d3 {[%clk 0:02:48.4]} 12... a4 {[%clk
0:02:39.9]} 13. Nd2 {[%clk 0:02:48.2]} 13... Qe7 {[%clk 0:02:27.2]} 14. O-O
{[%clk 0:02:44.4]} 14... O-O {[%clk 0:02:26.9]} 15. g5 {[%clk 0:02:37.9]} 15...
Ne8 {[%clk 0:02:19.1]} 16. h4 {[%clk 0:02:37.9]} 16... Nc7 {[%clk 0:02:17.5]}
17. Nf3 {[%clk 0:02:32.4]} 17... e5 {[%clk 0:02:14.2]} 18. cxd5 {[%clk
0:02:32.4]} 18... Nxd5 {[%clk 0:02:13]} 19. Rab1 {[%clk 0:02:12.4]} 19... axb3
{[%clk 0:02:11.7]} 20. axb3 {[%clk 0:02:13.3]} 20... Ra2 {[%clk 0:02:11.7]} 21.
Ra1 {[%clk 0:02:05.6]} 21... Rfa8 {[%clk 0:02:08.1]} 22. Rxa2 {[%clk 0:02:05.6]}
22... Rxa2 {[%clk 0:02:09]} 23. Ra1 {[%clk 0:02:05.7]} 23... Rxa1+ {[%clk
0:02:08.6]} 24. Bxa1 {[%clk 0:02:06.2]} 24... Qd8 {[%clk 0:02:03.8]} 25. Qa2
{[%clk 0:01:58.9]} 25... Nb4 {[%clk 0:01:53.7]} 26. Qb1 {[%clk 0:01:56.6]} 26...
Qa8 {[%clk 0:01:36.7]} 27. d4 {[%clk 0:01:53.9]} 27... exd4 {[%clk 0:01:25.1]}
28. Nxd4 {[%clk 0:01:54.8]} 28... Nc5 {[%clk 0:01:00.2]} 29. Bc3 {[%clk
0:01:48.5]} 29... Nd5 {[%clk 0:00:58.1]} 30. Bd2 {[%clk 0:01:41.7]} 30... Qa3
{[%clk 0:00:51.5]} 31. b4 {[%clk 0:01:40.6]} 31... Na4 {[%clk 0:00:41.9]} 32. b5
{[%clk 0:01:17.5]} 32... Nac3 {[%clk 0:00:39.4]} 33. Qf1 {[%clk 0:01:17.6]}
33... Qb2 {[%clk 0:00:18.6]} 34. Bxc3 {[%clk 0:01:17.8]} 34... Qxc3 {[%clk
0:00:19.5]} 35. bxc6 {[%clk 0:01:17.1]} 35... bxc6 {[%clk 0:00:20.4]} 36. Bxd5
{[%clk 0:01:10.2]} 36... cxd5 {[%clk 0:00:20.4]} 37. Qb5 {[%clk 0:01:10.9]}
37... Bc5 {[%clk 0:00:12.8]} 38. Ne2 {[%clk 0:01:07.2]} 38... Qe1+ {[%clk
0:00:11.8]} 39. Kg2 {[%clk 0:01:07.3]} 39... Bf8 {[%clk 0:00:11.2]} 40. Nd4
{[%clk 0:01:02.8]} 40... Qd1 {[%clk 0:00:10.3]} 41. Nf3 {[%clk 0:00:58.3]} 41...
Be7 {[%clk 0:00:04.8]} 42. Qe8+ {[%clk 0:00:58.2]} 42... Bf8 {[%clk 0:00:04.6]}
43. Ne5 {[%clk 0:00:58.9]} 43... f6 {[%clk 0:00:01.7]} 44. Qf7+ {[%clk
0:00:58.4]} 1-0

[Event "Early-Titled-Tuesday-Blitz-January-23-2024"]
[Site "Chess.com"]
[Date "2024.01.23"]
[Round "1"]
[White "Sina_Movahed"]
[Black "vesalhamedinia"]
[Result "1-0"]
[WhiteElo "2975"]
[BlackElo "2514"]
[TimeControl "180+1"]
[EndTime "8:06:51 PST"]
[Termination "Sina_Movahed won by resignation"]

1. e4 {[%clk 0:03:00.9]} 1... c5 {[%clk 0:03:00.1]} 2. Nf3 {[%clk 0:03:00.6]}
2... Nc6 {[%clk 0:03:00.4]} 3. d4 {[%clk 0:03:01]} 3... cxd4 {[%clk 0:03:01.3]}
4. Nxd4 {[%clk 0:03:01.9]} 4... Nf6 {[%clk 0:03:01.5]} 5. Nc3 {[%clk 0:03:02.5]}
5... e5 {[%clk 0:03:01.7]} 6. Ndb5 {[%clk 0:03:02.9]} 6... d6 {[%clk 0:03:02.2]}
7. Nd5 {[%clk 0:03:03.5]} 7... Nxd5 {[%clk 0:03:02]} 8. exd5 {[%clk 0:03:04.4]}
8... Nb8 {[%clk 0:03:02.4]} 9. c4 {[%clk 0:03:05]} 9... a6 {[%clk 0:03:02]} 10.
Nc3 {[%clk 0:02:55]} 10... Be7 {[%clk 0:03:02.1]} 11. Bd3 {[%clk 0:02:54.6]}
11... O-O {[%clk 0:03:02.2]} 12. O-O {[%clk 0:02:55.3]} 12... f5 {[%clk
0:03:00.6]} 13. f3 {[%clk 0:02:55.1]} 13... Nd7 {[%clk 0:03:00.2]} 14. Kh1
{[%clk 0:02:55.1]} 14... Nf6 {[%clk 0:02:55]} 15. Rb1 {[%clk 0:02:52.6]} 15...
b6 {[%clk 0:02:53.3]} 16. b4 {[%clk 0:02:52.5]} 16... Qc7 {[%clk 0:02:49.3]} 17.
Be3 {[%clk 0:02:32.6]} 17... Bd7 {[%clk 0:02:43.5]} 18. Rc1 {[%clk 0:02:29]}
18... Rac8 {[%clk 0:02:38.7]} 19. a3 {[%clk 0:02:27.4]} 19... Qb7 {[%clk
0:02:38.6]} 20. Qb3 {[%clk 0:02:25.3]} 20... Kh8 {[%clk 0:02:38]} 21. a4 {[%clk
0:02:21.9]} 21... h6 {[%clk 0:02:24.2]} 22. Qb1 {[%clk 0:02:11.3]} 22... e4
{[%clk 0:02:09.4]} 23. fxe4 {[%clk 0:02:10.1]} 23... fxe4 {[%clk 0:02:09.5]} 24.
Nxe4 {[%clk 0:02:02.5]} 24... Nxe4 {[%clk 0:02:03.7]} 25. Bxe4 {[%clk
0:01:51.5]} 25... Bxa4 {[%clk 0:01:35.6]} 26. Bxh6 {[%clk 0:01:40.5]} 26... Bf6
{[%clk 0:01:23.2]} 27. Bf4 {[%clk 0:01:37.3]} 27... Qe7 {[%clk 0:01:15.1]} 28.
Rce1 {[%clk 0:01:30.3]} 28... Rxc4 {[%clk 0:01:06.4]} 29. Bf5 {[%clk 0:01:21.5]}
29... Qf7 {[%clk 0:00:58.5]} 30. Re3 {[%clk 0:01:05.3]} 30... Bh4 {[%clk
0:00:51]} 31. Bxd6 {[%clk 0:00:57.7]} 31... Rd8 {[%clk 0:00:35]} 32. Re4 {[%clk
0:00:48.5]} 32... Bc2 {[%clk 0:00:26.5]} 33. Rxc4 {[%clk 0:00:47.4]} 33... Bxb1
{[%clk 0:00:17]} 34. Rxh4+ {[%clk 0:00:46.4]} 34... Kg8 {[%clk 0:00:15.8]} 35.
Be6 {[%clk 0:00:47.1]} 35... Qxe6 {[%clk 0:00:14.6]} 36. dxe6 {[%clk 0:00:47.3]}
36... Rxd6 {[%clk 0:00:13.7]} 37. e7 {[%clk 0:00:47.5]} 1-0